bitfinex/quotes_SOLUSD_20251106
["timestamp","ask_amount","ask_price","bid_price","bid_amount"]
[1762450207868,5.09959849,156.32,156.3,7.82]
[1762450208351,5.09959849,156.31,156.3,7.82]
[1762450208755,0.69,156.31,156.3,0.2]
[1762450208931,21.282,156.36,156.3,0.2]
[1762450209134,16.78585085,156.39,156.32,5.09959849]
[1762450209135,0.79928384,156.39,156.32,5.09959849]
[1762450209452,9.36914818,156.38,156.32,55.09959849]
[1762450209645,5.09959849,156.38,156.33,5.09959849]
[1762450209949,5.78959849,156.38,156.33,5.09959849]
[1762450210129,5.09959849,156.38,156.33,5.09959849]
[1762450210329,5.09959849,156.38,156.31,7.62]
[1762450210330,5.09959849,156.35,156.31,7.62]
[1762450210550,0.69,156.37,156.31,7.62]
[1762450210734,5.09959849,156.35,156.31,7.62]
[1762450210930,10.47882769,156.41,156.34,5.09959849]
[1762450211252,5.09959849,156.4,156.35,5.09959849]
[1762450211549,0.69,156.41,156.36,5.09959849]
[1762450211756,7.08229012,156.44,156.38,5.09959849]
[1762450211930,11.49188861,156.44,156.38,5.09959849]
[1762450212131,5.09959849,156.41,156.36,5.09959849]
[1762450212327,5.09959849,156.42,156.36,5.79959849]
[1762450212528,0.69,156.43,156.38,5.09959849]
[1762450212776,5.78959849,156.43,156.38,5.09959849]
[1762450212957,6.39304436,156.42,156.37,55.09959849]
[1762450213152,5.09959849,156.41,156.36,5.79959849]
[1762450213355,12.18264285,156.42,156.36,12.19507959]
[1762450213657,12.18264285,156.42,156.36,5.79959849]
[1762450214043,5.09959849,156.4,156.35,57.62]
[1762450214358,0.69,156.41,156.36,5.09959849]
[1762450214359,5.09959849,156.41,156.36,5.09959849]
[1762450214541,5.09959849,156.41,156.36,5.79959849]
[1762450214746,5.78959849,156.41,156.36,5.79959849]
[1762450214945,5.78959849,156.4,156.35,12.71959849]
[1762450215158,5.78959849,156.4,156.35,7.62]
[1762450215159,5.09959849,156.38,156.35,7.62]
[1762450215350,5.78959849,156.39,156.35,7.62]
[1762450216162,5.78959849,156.39,156.3,0.2]
[1762450216163,5.09959849,156.36,156.3,0.2]
[1762450216351,5.09959849,156.36,156.3,5.99959849]
[1762450216677,5.78959849,156.35,156.3,0.2]
[1762450216960,5.09959849,156.32,156.3,0.2]
[1762450217155,11.4968712,156.32,156.3,0.2]
[1762450217542,0.69,156.31,156.3,0.2]
[1762450217738,5.09959849,156.32,156.3,0.2]
[1762450218842,32.08762257,156.35,156.3,5.99959849]
[1762450219051,9.34404848,156.34,156.3,0.2]
[1762450219357,5.09959849,156.31,156.3,0.2]
[1762450220060,10.03179271,156.31,156.3,0.2]
[1762450220249,9.34179271,156.31,156.3,0.2]
[1762450220441,5.09959849,156.31,156.3,0.2]
[1762450220760,5.09959849,156.32,156.3,0.2]
[1762450221247,11.49690474,156.32,156.3,0.2]
[1762450221755,0.69,156.38,156.31,0.7]
[1762450221957,9.33568084,156.37,156.31,5.79959849]
[1762450222159,9.33568084,156.36,156.31,5.79959849]
[1762450222457,9.78882769,156.34,156.3,0.2]
[1762450222663,5.09959849,156.34,156.3,0.2]
[1762450222861,6.39505464,156.38,156.32,5.09959849]
[1762450223040,9.33444774,156.37,156.32,5.09959849]
[1762450223237,5.09959849,156.37,156.32,0.66]
[1762450223567,5.09959849,156.37,156.33,0.66]
[1762450223745,5.09959849,156.36,156.31,55.75959849]
[1762450223947,5.09959849,156.33,156.3,0.2]
[1762450224340,0.66,156.35,156.3,0.2]
[1762450224341,5.09959849,156.32,156.3,0.2]
[1762450224551,5.09959849,156.31,156.3,0.2]
[1762450224865,5.09959849,156.32,156.3,0.2]
[1762450225242,5.09959849,156.31,156.3,0.2]
[1762450225442,22.38853706,156.33,156.3,0.2]
[1762450225443,20.592,156.33,156.3,0.2]
[1762450225655,5.09959849,156.32,156.3,0.2]
[1762450225842,5.09959849,156.31,156.3,0.2]
[1762450226266,21.252,156.33,156.3,0.2]
[1762450226564,5.09959849,156.31,156.3,0.2]
[1762450226962,12.15714183,156.31,156.3,0.2]
[1762450227176,6.39754334,156.31,156.3,0.2]
[1762450227342,11.49714183,156.31,156.3,0.2]
[1762450227542,11.49686915,156.32,156.3,0.2]
[1762450227856,5.09959849,156.31,156.3,0.2]
[1762450228055,5.75959849,156.31,156.3,0.2]
[1762450228373,19.77903111,156.31,156.3,0.2]
[1762450228577,9.78882769,156.3,156.22,58.3]
[1762450228738,9.78882769,156.3,156.21,0.2]
[1762450228739,9.78882769,156.28,156.21,0.2]
[1762450228944,5.09959849,156.29,156.24,5.09959849]
[1762450229361,5.09959849,156.28,156.25,0.66]
[1762450229575,5.09959849,156.27,156.21,50.2]
[1762450229753,5.09959849,156.26,156.21,50.86]
[1762450230064,42.98504653,156.3,156.22,5.75959849]
[1762450230241,32.08976339,156.3,156.24,5.09959849]
[1762450230437,5.09959849,156.31,156.25,55.09959849]
[1762450230641,5.09959849,156.3,156.25,50.0]
[1762450230863,6.39795297,156.3,156.26,5.09959849]
[1762450231065,20.592,156.33,156.27,5.09959849]
[1762450231372,20.592,156.32,156.27,50.66]
[1762450231664,25.69159849,156.32,156.27,55.75959849]
[1762450231877,20.592,156.32,156.28,0.66]
[1762450232079,26.35159849,156.32,156.27,55.75959849]
[1762450232288,14.88842618,156.31,156.25,57.64]
[1762450232441,5.09959849,156.26,156.22,0.66]
[1762450232644,5.09959849,156.25,156.21,7.84]
[1762450232842,11.49970577,156.25,156.21,7.84]
[1762450233061,11.49970577,156.25,156.21,8.5]
[1762450233659,11.49970577,156.25,156.21,14.90155608]
[1762450233982,20.592,156.28,156.22,55.75959849]
[1762450234145,32.0903791,156.28,156.22,55.09959849]
[1762450234465,12.27554962,156.27,156.22,50.0]
[1762450234656,8.03994922,156.27,156.22,50.66]
[1762450234855,35.03072983,156.28,156.23,0.66]
[1762450235056,35.69072983,156.28,156.23,0.66]
[1762450235255,35.69072983,156.28,156.22,50.0]
[1762450235256,8.03994922,156.27,156.22,50.0]
[1762450235460,8.03994922,156.26,156.22,50.0]
[1762450235667,8.03994922,156.27,156.22,50.0]
[1762450236050,8.69994922,156.27,156.22,50.66]
[1762450236478,28.63194922,156.28,156.23,0.66]
[1762450236643,26.99081002,156.28,156.23,8.69994922]
[1762450236846,35.03075924,156.28,156.23,0.66]
[1762450237043,12.27834524,156.27,156.23,0.66]
[1762450237247,8.03994922,156.25,156.21,7.84]
[1762450237676,26.99081002,156.28,156.22,8.72994922]
[1762450237881,4.24029179,156.27,156.22,8.72994922]
[1762450238165,35.03075924,156.28,156.23,0.69]
[1762450238166,28.63194922,156.28,156.23,0.69]
[1762450238471,4.23987879,156.27,156.23,0.69]
[1762450238651,35.03086988,156.28,156.23,0.69]
[1762450238846,12.28187871,156.27,156.23,0.69]
[1762450239067,12.28187871,156.27,156.22,58.03994922]
[1762450239068,18.68174848,156.26,156.21,15.87994922]
[1762450239263,8.03994922,156.23,156.21,7.84]
[1762450239467,4.24192949,156.22,156.21,7.84]
[1762450239649,4.24192949,156.22,156.21,8.53]
[1762450239846,12.28187871,156.22,156.21,0.2]
[1762450240064,12.99187871,156.22,156.21,0.2]
[1762450240453,12.28187871,156.22,156.21,0.2]
[1762450240661,4.24192949,156.22,156.21,0.2]
[1762450240866,4.24192949,156.22,156.21,0.89]
[1762450241165,4.24571567,156.22,156.21,0.89]
[1762450241366,4.24916468,156.22,156.21,0.2]
[1762450243388,18.69034293,156.22,156.21,0.2]
[1762450244388,19.40034293,156.22,156.21,0.2]
[1762450244561,19.40034293,156.22,156.17,0.69]
[1762450244562,8.03994922,156.21,156.17,0.69]
[1762450244772,4.24916468,156.2,156.17,0.69]
[1762450244963,4.24916468,156.19,156.17,0.69]
[1762450245164,4.24916468,156.18,156.17,0.69]
[1762450245387,4.24916468,156.18,156.16,57.64]
[1762450245592,4.24916468,156.17,156.16,64.73360447]
[1762450245757,4.24916468,156.17,156.16,72.08355369]
[1762450245956,26.99368198,156.21,156.16,72.08355369]
[1762450246152,4.25881999,156.2,156.16,72.08355369]
[1762450246475,28.63194922,156.21,156.16,72.08355369]
[1762450246476,4.25881999,156.19,156.16,64.73360447]
[1762450246695,4.25881999,156.18,156.16,58.33]
[1762450246903,4.25881999,156.17,156.16,57.64]
[1762450247282,4.25881999,156.17,156.16,58.33]
[1762450248388,4.25881999,156.17,156.16,64.73368852]
[1762450249607,4.25881999,156.17,156.16,72.77363774]
[1762450249979,4.25881999,156.17,156.16,122.77363774]
[1762450250375,6.40097104,156.23,156.19,50.0]
[1762450250777,8.03994922,156.21,156.17,50.69]
[1762450250983,8.03994922,156.2,156.17,50.0]
[1762450251378,6.40048834,156.24,156.18,15.1328177]
[1762450251728,10.49882769,156.25,156.19,58.03994922]
[1762450252015,10.49882769,156.25,156.18,6.40286848]
[1762450252201,8.03994922,156.23,156.18,14.4428177]
[1762450252512,40.2290369,156.25,156.2,8.03994922]
[1762450252719,0.79964176,156.32,156.23,8.03994922]
[1762450253012,8.03994922,156.27,156.21,58.3]
[1762450253187,8.03994922,156.26,156.21,16.33994922]
[1762450253511,8.03994922,156.24,156.21,7.64]
[1762450253804,6.4001448,156.25,156.17,65.10296149]
[1762450253805,8.03994922,156.22,156.17,65.10296149]
[1762450254006,9.78882769,156.23,156.18,8.03994922]
[1762450254007,17.82877691,156.23,156.18,8.03994922]
[1762450254505,18.47877691,156.23,156.18,8.69994922]
[1762450254890,24.87988539,156.23,156.18,15.10254976]
[1762450255091,16.83993617,156.23,156.18,8.69994922]
[1762450255292,24.87988539,156.23,156.18,8.69994922]
[1762450255500,20.592,156.24,156.19,8.69994922]
[1762450255705,28.63194922,156.24,156.19,8.69994922]
[1762450255909,29.28194922,156.24,156.19,8.69994922]
[1762450256214,20.592,156.24,156.2,8.69994922]
[1762450256402,6.39933268,156.27,156.23,8.03994922]
[1762450256803,6.39933268,156.27,156.23,8.69994922]
[1762450257111,6.39933268,156.27,156.23,15.10041058]
[1762450257312,6.39933268,156.27,156.21,66.00353644]
[1762450257313,8.68994922,156.26,156.21,50.0]
[1762450257510,8.68994922,156.26,156.21,50.66]
[1762450257847,8.68994922,156.25,156.21,50.0]
[1762450258006,8.03994922,156.26,156.21,56.40152001]
[1762450258311,15.0892819,156.27,156.22,8.03994922]
[1762450258526,20.592,156.29,156.25,8.03994922]
[1762450258703,26.99038984,156.29,156.25,8.03994922]
[1762450258897,6.3980368,156.3,156.26,8.03994922]
[1762450259100,6.3980368,156.3,156.26,8.69994922]
[1762450259698,6.39672487,156.33,156.28,8.03994922]
[1762450260015,26.98872487,156.33,156.28,8.03994922]
[1762450260206,26.98872487,156.33,156.25,72.4]
[1762450260207,8.03994922,156.31,156.26,8.03994922]
[1762450260512,8.03994922,156.34,156.29,8.03994922]
[1762450260712,24.22475539,156.35,156.3,8.03994922]
[1762450260930,8.03994922,156.34,156.29,8.03994922]
[1762450261093,18.47877691,156.35,156.29,14.43797165]
[1762450261299,24.22437675,156.36,156.31,8.03994922]
[1762450261617,24.22437675,156.36,156.25,58.69994922]
[1762450261618,9.78882769,156.31,156.25,58.69994922]
[1762450261917,8.03994922,156.28,156.23,0.66]
[1762450262091,8.03994922,156.25,156.2,58.69994922]
[1762450262299,8.03994922,156.23,156.18,50.0]
[1762450262625,8.03994922,156.21,156.16,58.03994922]
[1762450262938,8.03994922,156.19,156.15,6.60396423]
[1762450263094,14.44245693,156.19,156.15,6.60396423]
[1762450263295,14.44245693,156.19,156.15,0.86]
[1762450263515,9.78882769,156.18,156.15,0.2]
[1762450263703,17.82877691,156.18,156.15,0.2]
[1762450263903,8.03994922,156.17,156.15,0.2]
[1762450264398,8.03994922,156.19,156.15,0.86]
[1762450264610,17.82877691,156.2,156.15,0.2]
[1762450264797,8.03994922,156.18,156.15,0.2]
[1762450265123,8.03994922,156.23,156.17,8.03994922]
[1762450265308,8.03994922,156.26,156.2,8.03994922]
[1762450265497,14.43900553,156.28,156.22,8.03994922]
[1762450265699,35.03100553,156.28,156.22,8.03994922]
[1762450265926,9.78882769,156.27,156.22,8.03994922]
[1762450266229,6.39848466,156.29,156.24,8.03994922]
[1762450266522,22.05792825,156.3,156.25,8.03994922]
[1762450266697,22.05792825,156.3,156.23,58.28]
[1762450266898,7.62,156.3,156.27,8.03994922]
[1762450267105,9.78882769,156.33,156.28,8.03994922]
[1762450267398,8.03994922,156.32,156.26,58.03994922]
[1762450267598,8.03994922,156.3,156.25,8.03994922]
[1762450268019,0.65,156.32,156.25,8.69994922]
[1762450268020,17.82877691,156.31,156.25,8.69994922]
[1762450268210,17.82877691,156.31,156.26,8.03994922]
[1762450268405,17.82877691,156.33,156.27,58.03994922]
[1762450268810,17.82877691,156.33,156.27,65.65994922]
[1762450269025,6.39795265,156.3,156.25,64.43984106]
[1762450269203,14.43760558,156.31,156.25,64.43984106]
[1762450269404,14.43760558,156.31,156.26,8.03994922]
[1762450269926,20.592,156.3,156.25,64.43984106]
[1762450270294,8.03994922,156.28,156.23,50.0]
[1762450270514,8.03994922,156.25,156.21,50.0]
[1762450270714,8.03994922,156.27,156.21,58.69994922]
[1762450270910,18.47877691,156.28,156.22,8.03994922]
[1762450271105,7.62,156.29,156.25,8.03994922]
[1762450271316,8.03994922,156.28,156.23,8.03994922]
[1762450271512,9.78882769,156.27,156.22,7.62]
[1762450271729,8.03994922,156.26,156.22,7.62]
[1762450272224,8.03994922,156.26,156.21,64.44156285]
[1762450272225,6.4008193,156.23,156.18,14.44273772]
[1762450272428,6.4008193,156.23,156.18,6.4027885]
[1762450272429,8.03994922,156.22,156.18,6.4027885]
[1762450272629,15.09076852,156.23,156.17,65.10313799]
[1762450273126,15.09076852,156.23,156.16,7.62]
[1762450273127,8.03994922,156.22,156.16,22.72362214]
[1762450273329,8.03994922,156.22,156.17,8.03994922]
[1762450273517,8.03994922,156.22,156.16,16.31994922]
[1762450274030,8.03994922,156.2,156.16,7.62]
[1762450274227,14.44299002,156.18,156.15,0.2]
[1762450274724,15.09299002,156.18,156.15,0.2]
[1762450275108,8.03994922,156.17,156.15,0.2]
[1762450275928,7.0530408,156.18,156.15,0.2]
[1762450275929,8.68994922,156.18,156.15,0.2]
[1762450276128,8.03994922,156.16,156.15,0.2]
[1762450276307,14.44363774,156.16,156.15,0.2]
[1762450276606,6.40368852,156.16,156.15,0.2]
[1762450277032,8.68994922,156.17,156.15,0.2]
[1762450277232,15.093242,156.17,156.15,0.2]
[1762450277409,14.443242,156.17,156.15,0.2]
[1762450277808,28.63194922,156.18,156.15,0.2]
[1762450278125,8.03994922,156.25,156.18,50.0]
[1762450278329,35.68153964,156.26,156.2,8.03994922]
[1762450278537,8.03994922,156.26,156.21,8.03994922]
[1762450278832,7.62,156.29,156.24,8.03994922]
[1762450279013,8.03994922,156.27,156.22,58.69994922]
[1762450279215,8.03994922,156.27,156.22,58.03994922]
[1762450279422,8.03994922,156.28,156.23,8.03994922]
[1762450279617,8.03994922,156.28,156.22,58.69994922]
[1762450279822,8.03994922,156.27,156.22,8.69994922]
[1762450280020,8.03994922,156.28,156.23,8.03994922]
[1762450280215,42.6503688,156.29,156.24,8.03994922]
[1762450280411,36.90194922,156.29,156.24,8.03994922]
[1762450280625,36.90194922,156.29,156.22,6.4011027]
[1762450280626,8.68994922,156.28,156.23,8.03994922]
[1762450280941,18.47877691,156.28,156.23,8.03994922]
[1762450281136,18.47877691,156.28,156.22,8.03994922]
[1762450281312,10.43882769,156.28,156.21,57.06142565]
[1762450281637,8.03994922,156.26,156.21,8.03994922]
[1762450281940,18.47877691,156.27,156.21,8.03994922]
[1762450282233,18.47877691,156.27,156.2,7.62]
[1762450282234,6.40040962,156.24,156.2,7.62]
[1762450282420,6.40012841,156.25,156.2,22.06191652]
[1762450282620,7.11012841,156.25,156.2,15.65994922]
[1762450282843,7.11012841,156.25,156.2,16.35994922]
[1762450283039,15.15007763,156.25,156.2,16.35994922]
[1762450283225,20.592,156.25,156.21,8.03994922]
[1762450283426,24.22754834,156.28,156.22,8.03994922]
[1762450283636,6.39877143,156.28,156.24,8.03994922]
[1762450283942,8.03994922,156.26,156.21,8.03994922]
[1762450284116,9.78882769,156.26,156.21,58.03994922]
[1762450284320,102.9,156.28,156.23,8.03994922]
[1762450284525,0.71,156.34,156.27,8.03994922]
[1762450284829,8.74994922,156.34,156.29,8.03994922]
[1762450285025,29.34194922,156.34,156.28,8.03994922]
[1762450285223,116.91516429,156.37,156.3,8.03994922]
[1762450285224,8.74994922,156.36,156.3,8.03994922]
[1762450285534,8.74994922,156.36,156.31,8.03994922]
[1762450285739,0.71,156.36,156.32,8.03994922]
[1762450285919,0.71,156.36,156.31,8.03994922]
[1762450286115,9.78882769,156.35,156.3,0.7]
[1762450286330,6.39631572,156.34,156.29,50.0]
[1762450286727,6.39631572,156.34,156.29,58.73994922]
[1762450287048,0.71,156.33,156.29,8.03994922]
[1762450287343,14.43554973,156.36,156.31,8.03994922]
[1762450287554,14.43554973,156.36,156.24,50.0]
[1762450287555,28.63194922,156.32,156.24,50.0]
[1762450287719,8.03994922,156.26,156.2,50.7]
[1762450287928,8.03994922,156.25,156.2,8.73994922]
[1762450288129,8.03994922,156.27,156.21,58.03994922]
[1762450288326,14.43937802,156.27,156.21,64.44148605]
[1762450288524,35.03066137,156.29,156.23,8.03994922]
[1762450288750,8.03994922,156.27,156.22,16.35994922]
[1762450288922,8.03994922,156.28,156.22,16.35994922]
[1762450289345,8.03994922,156.26,156.22,7.62]
[1762450289653,8.03994922,156.24,156.19,50.0]
[1762450289835,8.03994922,156.25,156.19,58.03994922]
[1762450290149,10.49882769,156.27,156.22,8.03994922]
[1762450290150,8.03994922,156.27,156.22,8.03994922]
[1762450290529,8.03994922,156.27,156.22,0.7]
[1762450290851,8.03994922,156.23,156.17,50.0]
[1762450291038,21.302,156.26,156.16,22.76334904]
[1762450291039,8.03994922,156.21,156.16,22.76334904]
[1762450291422,8.03994922,156.21,156.16,16.35994922]
[1762450291651,8.03994922,156.21,156.16,15.65994922]
[1762450291863,8.03994922,156.21,156.17,0.7]
[1762450292251,6.40204865,156.2,156.16,15.65994922]
[1762450292444,8.03994922,156.19,156.15,50.2]
[1762450292657,14.44170067,156.21,156.15,58.23994922]
[1762450292873,14.44170067,156.21,156.16,8.73994922]
[1762450293370,8.03994922,156.22,156.17,8.73994922]
[1762450293550,20.592,156.24,156.21,8.03994922]
[1762450294291,0.79948832,156.35,156.23,30.44281678]
[1762450294445,0.71,156.34,156.28,5.11306896]
[1762450294643,5.11306896,156.33,156.25,50.0]
[1762450294874,5.11306896,156.33,156.27,5.11306896]
[1762450295047,0.71,156.32,156.27,5.11306896]
[1762450295251,0.71,156.32,156.28,5.11306896]
[1762450295469,30.80076737,156.38,156.29,5.11306896]
[1762450295662,5.11306896,156.35,156.3,5.11306896]
[1762450295879,20.592,156.35,156.3,5.11306896]
[1762450296059,26.41506896,156.35,156.3,5.11306896]
[1762450296251,6.39672487,156.33,156.29,5.11306896]
[1762450296451,6.39672487,156.33,156.28,0.7]
[1762450296452,11.50979383,156.33,156.28,0.7]
[1762450296670,5.82306896,156.32,156.27,55.11306896]
[1762450297059,5.82306896,156.32,156.26,12.73306896]
[1762450297267,5.11306896,156.28,156.21,50.66]
[1762450297466,5.11306896,156.25,156.19,55.11306896]
[1762450297663,9.78882769,156.26,156.2,5.77306896]
[1762450297976,5.11306896,156.25,156.2,0.66]
[1762450298389,11.51339888,156.25,156.2,0.66]
[1762450298951,11.51320146,156.25,156.2,0.66]
[1762450299146,5.77306896,156.24,156.19,5.11306896]
[1762450299351,5.11306896,156.24,156.19,55.11306896]
[1762450299546,9.78882769,156.26,156.2,5.77306896]
[1762450299750,5.11306896,156.25,156.2,5.77306896]
[1762450299971,0.66,156.27,156.21,5.11306896]
[1762450300174,5.11306896,156.26,156.2,5.11306896]
[1762450300359,11.51329461,156.25,156.19,62.17518765]
[1762450300555,11.51329461,156.25,156.2,5.11306896]
[1762450301079,6.40022565,156.25,156.2,5.11306896]
[1762450301283,11.51329461,156.25,156.2,5.77306896]
[1762450301578,11.51272663,156.26,156.2,12.17485291]
[1762450301780,5.11306896,156.21,156.17,64.02323893]
[1762450301984,0.66,156.3,156.2,75.70506896]
[1762450302152,5.11306896,156.28,156.22,5.11306896]
[1762450302359,5.11306896,156.27,156.21,63.39306896]
[1762450302958,5.11306896,156.25,156.21,7.62]
[1762450303154,5.11306896,156.25,156.2,5.11306896]
[1762450303155,9.78882769,156.25,156.19,50.0]
[1762450303354,11.51429799,156.22,156.17,5.11306896]
[1762450303586,5.11306896,156.2,156.16,14.418055]
[1762450303785,5.11306896,156.19,156.16,14.418055]
[1762450304170,5.77306896,156.19,156.16,14.418055]
[1762450305580,11.51540397,156.2,156.16,14.418055]
[1762450305884,12.17540397,156.2,156.16,14.418055]
[1762450306882,5.11306896,156.19,156.16,14.418055]
[1762450307557,12.17593744,156.18,156.16,14.418055]
[1762450307763,11.51593744,156.18,156.16,14.418055]
[1762450308989,6.40286848,156.18,156.16,14.418055]
[1762450309578,102.9,156.21,156.17,0.66]
[1762450309778,114.4147853,156.21,156.17,0.66]
[1762450310270,5.77306896,156.2,156.16,14.418055]
[1762450310468,5.11306896,156.18,156.16,14.418055]
[1762450310891,5.11306896,156.19,156.16,14.418055]
[1762450311089,109.30171634,156.21,156.17,0.66]
[1762450311256,109.30171634,156.21,156.16,19.53112396]
[1762450311257,5.11306896,156.19,156.16,14.418055]
[1762450311460,11.51634743,156.17,156.16,14.418055]
[1762450311862,6.40327847,156.17,156.16,14.418055]
[1762450312080,109.30289903,156.18,156.16,14.418055]
[1762450312267,5.11306896,156.17,156.16,14.418055]
[1762450312669,15.57189665,156.17,156.16,14.418055]
[1762450313196,10.45882769,156.17,156.16,14.418055]
[1762450313368,15.57189665,156.17,156.16,14.418055]
[1762450313891,21.97517512,156.17,156.16,14.418055]
[1762450314886,102.9,156.18,156.16,14.418055]
[1762450315090,102.9,156.18,156.17,0.69]
[1762450315289,102.9,156.18,156.16,25.93476904]
[1762450315480,102.9,156.18,156.16,26.62476904]
[1762450315675,102.9,156.18,156.17,0.69]
[1762450315880,102.9,156.18,156.17,12.20634743]
[1762450316308,102.9,156.18,156.16,19.53112396]
[1762450316593,6.40285399,156.19,156.16,14.418055]
[1762450316795,5.78306896,156.2,156.16,14.418055]
[1762450317396,102.9,156.22,156.16,14.418055]
[1762450317397,11.51484972,156.21,156.16,21.51172838]
[1762450317565,11.51484972,156.21,156.16,26.62479734]
[1762450317772,108.01306896,156.22,156.17,0.69]
[1762450317972,114.41458186,156.22,156.17,7.09325171]
[1762450318290,102.9,156.22,156.18,12.73306896]
[1762450318474,102.9,156.22,156.18,13.42306896]
[1762450319600,7.62,156.25,156.2,5.11306896]
[1762450319891,11.51391493,156.23,156.18,7.62]
[1762450320090,0.67,156.28,156.22,5.11306896]
[1762450320397,5.11306896,156.33,156.23,50.0]
[1762450320592,5.11306896,156.29,156.24,5.80306896]
[1762450320793,5.11306896,156.28,156.23,7.62]
[1762450320981,0.67,156.32,156.26,5.11306896]
[1762450321174,12.73306896,156.33,156.27,5.11306896]
[1762450321479,0.67,156.35,156.29,5.11306896]
[1762450321687,0.67,156.38,156.32,5.11306896]
[1762450321884,7.06478968,156.38,156.33,5.11306896]
[1762450322082,7.06478968,156.38,156.31,8.31]
[1762450322083,5.11306896,156.35,156.31,7.62]
[1762450322401,5.11306896,156.33,156.28,69.82174755]
[1762450322584,5.11306896,156.32,156.28,8.31]
[1762450322778,5.11306896,156.32,156.28,7.62]
[1762450322986,5.11306896,156.29,156.25,7.62]
[1762450323392,5.11306896,156.26,156.22,50.0]
[1762450323695,5.11306896,156.29,156.24,5.11306896]
[1762450323871,21.29946423,156.31,156.25,5.11306896]
[1762450324072,21.29946423,156.31,156.25,11.51301973]
[1762450324269,5.11306896,156.28,156.22,50.69]
[1762450324501,5.11306896,156.27,156.22,12.2042304]
[1762450324811,10.45882769,156.3,156.21,7.62]
[1762450324812,20.592,156.28,156.21,7.62]
[1762450324971,7.06549756,156.36,156.27,5.11306896]
[1762450325176,12.17856652,156.36,156.31,5.11306896]
[1762450325420,5.11306896,156.32,156.27,7.62]
[1762450325697,5.11306896,156.3,156.25,50.0]
[1762450325872,11.5102619,156.32,156.27,5.11306896]
[1762450326074,27.5030971,156.32,156.26,5.80306896]
[1762450326293,22.39002814,156.32,156.26,5.80306896]
[1762450326477,8.29,156.36,156.28,5.11306896]
[1762450326688,14.90189665,156.34,156.28,5.11306896]
[1762450327003,5.11306896,156.33,156.28,5.11306896]
[1762450327200,5.11306896,156.33,156.25,55.11306896]
[1762450327201,5.11306896,156.31,156.25,55.11306896]
[1762450327499,135.00097557,156.35,156.29,5.11306896]
[1762450327679,135.00097557,156.35,156.3,5.11306896]
[1762450327880,129.88790661,156.35,156.3,5.11306896]
[1762450328192,6.39467962,156.38,156.32,5.11306896]
[1762450328374,7.06434984,156.39,156.32,5.11306896]
[1762450328575,5.11306896,156.37,156.31,6.39754334]
[1762450328879,5.11306896,156.37,156.32,5.11306896]
[1762450329097,5.11306896,156.38,156.33,5.11306896]
[1762450329601,5.78306896,156.38,156.32,55.80306896]
[1762450329784,5.11306896,156.36,156.3,5.80306896]
[1762450329987,6.39631572,156.34,156.3,5.80306896]
[1762450330182,11.50905222,156.35,156.3,12.20095184]
[1762450330382,11.50905222,156.35,156.3,5.80306896]
[1762450330705,5.11306896,156.34,156.29,19.13114018]
[1762450330875,12.17905222,156.35,156.3,0.69]
[1762450331071,12.17905222,156.35,156.3,5.80306896]
[1762450331277,0.67,156.35,156.3,5.11306896]
[1762450331580,5.78306896,156.35,156.3,5.80306896]
[1762450331773,20.592,156.36,156.31,5.80306896]
[1762450331970,20.592,156.36,156.32,5.11306896]
[1762450332174,26.98757607,156.36,156.32,5.80306896]
[1762450332384,11.50811593,156.38,156.33,5.80306896]
[1762450332581,11.50811593,156.38,156.33,0.69]
[1762450332785,12.17811593,156.38,156.33,0.69]
[1762450333584,14.90189665,156.39,156.33,5.80306896]
[1762450333784,20.592,156.4,156.36,5.11306896]
[1762450334006,0.67,156.4,156.36,5.11306896]
[1762450334180,11.6065643,156.41,156.36,0.69]
[1762450334505,5.11306896,156.4,156.36,0.69]
[1762450334707,28.26019706,156.41,156.36,0.69]
[1762450334913,5.11306896,156.38,156.33,12.73306896]
[1762450335114,5.11306896,156.37,156.33,7.62]
[1762450335808,30.38082769,156.38,156.33,7.62]
[1762450335992,9.78882769,156.36,156.33,7.62]
[1762450336185,16.18462857,156.36,156.33,7.62]
[1762450336384,21.29769753,156.36,156.33,7.62]
[1762450336587,11.50886984,156.36,156.33,7.62]
[1762450336807,32.09986533,156.38,156.33,12.73306896]
[1762450337002,0.1,156.41,156.36,5.11306896]
[1762450337203,0.1,156.41,156.38,5.11306896]